Workbook

Sheet 업무여유도 양식
A2: 업무여유도
A3: ( 참여분야 : 사업책임기술자, 정창화)
A4: (중복도 산정 기준일) | C4: 2016-09-28
A5: No. | B5: 용역명 | C5: 총사업금액 (백만원) | D5: 착수일 | E5: 준공일 | F5: 잔여 일수 | G5: 총계약 일수 | H5: 중복일수 (개월)
A6: 1 | B6: 영덕군 소하천정비종합계획 재수립 및 지형도면고시(1권역)용역 | C6: 1793 | D6: 2015-09-07 | E6: 2018-08-21 | F6: =E6-$C$4+1 -> 693 | G6: =E6-D6+1 -> 1080 | H6: =ROUNDDOWN(F6/30,1) -> 23.1
A7: 2 | B7: 송정지구 도시개발사업 실시 및 환지계획 수립용역 | C7: 1603 | D7: 2016-02-15 | E7: 2017-08-07 | F7: =E7-$C$4+1 -> 314 | G7: =E7-D7+1 -> 540 | H7: =ROUNDDOWN(F7/30,1) -> 10.4
A8: 3 | B8: 남구 도시첨단 산업단지(지방지정) 조성사업 조사설계 용역 | C8: 2666 | D8: 2016-06-01 | E8: 2018-05-31 | F8: 611 | G8: 730 | H8: =ROUNDDOWN(F8/30,1) -> 20.3
A9: 4 | B9: 곡교천권역 하천기본계획 전략환경영향평가용역 ※용역중지-15.06.11 | C9: 990 | D9: 2014-07-08 | E9: 2016-12-31 | F9: =E9-K9+1 -> 570 | G9: 908 | H9: ※공고일기준 3개월이상 용역중지 | K9: 2015-06-11
B10: 계 | H10: =SUM(H6:H9) -> 53.8
A12: ( 참여분야 : 도시계획분야 책임기술자, 윤수근)
A13: (중복도 산정 기준일) | C13: =$C$4 -> 2016-09-28
A14: No. | B14: 용역명 | C14: 총사업금액 (백만원) | D14: 착수일 | E14: 준공일 | F14: 잔여 일수 | G14: 총계약 일수 | H14: 중복일수 (개월)
A15: 1 | B15: 양산사송지구 보금자리 주택조성사업 조사설계 용역 | C15: 5303 | D15: 2007-12-27 | E15: 2019-05-30 | F15: =E15-$C$4+1 -> 975 | G15: =E15-D15+1 -> 4173 | H15: =ROUNDDOWN(F15/30,1) -> 32.5
A16: 2 | B16: 율촌산단 배후택지 조성사업 개발계획 및 실시설계용역 | C16: 1328 | D16: 2016-04-27 | E16: 2017-04-26 | F16: =E16-$C$4+1 -> 211 | G16: =E16-D16+1 -> 365 | H16: =ROUNDDOWN(F16/30,1) -> 7
A17: 3 | B17: 월미지구단위계획수립용역 | C17: 184 | D17: 2014-12-22 | E17: 2016-12-21 | F17: =E17-$C$4+1 -> 85 | G17: =E17-D17+1 -> 731 | H17: =ROUNDDOWN(F17/30,1) -> 2.8
A18: 4 | B18: 부여 구드래역사마을 도시개발사업구역지정, 지구단위계획 및 실시설계용역 ※용역중지-15.09.25 | C18: 508 | D18: 2015-05-08 | E18: 2016-05-06 | F18: =E18-K18+1 -> 225 | G18: =E18-D18+1 -> 365 | H18: ※공고일기준 3개월이상 용역중지 | K18: 2015-09-25
B19: 계 | H19: =SUM(H15:H18) -> 42.3
A21: ( 참여분야 : 도로공항분야 책임기술자, 이광로)
A22: (중복도 산정 기준일) | C22: =$C$4 -> 2016-09-28
A23: No. | B23: 용역명 | C23: 총사업금액 (백만원) | D23: 착수일 | E23: 준공일 | F23: 잔여 일수 | G23: 총계약 일수 | H23: 중복일수 (개월)
A24: 1 | B24: 안성 중소기업 일반산업단지 개발계획(변경) 및 실시계획 용역 | C24: 1438 | D24: 2016-04-25 | E24: 2017-04-24 | F24: =E24-$C$4+1 -> 209 | G24: =E24-D24+1 -> 365 | H24: =ROUNDDOWN(F24/30,1) -> 6.9
A25: 2 | B25: 고양원흥 보금자리주택지구 조성공사 실시설계용역 ※사후관리용역 | C25: 1378 | D25: 2009-08-27 | E25: 2016-12-31 | F25: =E25-$C$4+1 -> 95 | G25: =E25-D25+1 -> 2684 | H25: ※사후관리용역
A26: 3 | B26: 옥계첨단소재융합 산업지구개발 개발계획변경 및 기본및실시설계용역 ※용역중지-15.12.10 | C26: 1407 | D26: 2014-12-24 | E26: 2016-03-22 | F26: =E26-K26+1 -> 104 | G26: =E26-D26+1 -> 455 | H26: ※공고일기준 3개월이상 용역중지 | K26: 2015-12-10
A27: 4 | B27: 부여 구드래역사마을 도시개발사업구역지정, 지구단위계획 및 실시설계용역 ※용역중지-15.09.25 | C27: 508 | D27: 2015-05-08 | E27: 2016-05-06 | F27: =E27-K27+1 -> 225 | G27: =E27-D27+1 -> 365 | H27: ※공고일기준 3개월이상 용역중지 | K27: 2015-09-25
B28: 계 | H28: =SUM(H24:H27) -> 6.9
A30: ( 참여분야 : 토질지질분야 책임기술자, 이응만)
A31: (중복도 산정 기준일) | C31: =$C$4 -> 2016-09-28
A32: No. | B32: 용역명 | C32: 총사업금액 (백만원) | D32: 착수일 | E32: 준공일 | F32: 잔여 일수 | G32: 총계약 일수 | H32: 중복일수 (개월)
A33: 1 | B33: 행정중심복합도시 6-3,6-4생활권 단지개발사업 기본 및 실시설계용역 | C33: 3498 | D33: 2015-04-10 | E33: 2018-04-09 | F33: =E33-$C$4+1 -> 559 | G33: =E33-D33+1 -> 1096 | H33: =ROUNDDOWN(F33/30,1) -> 18.6
B34: 계 | H34: =SUM(H33) -> 18.6
A36: ( 참여분야 :토목구조분야 책임기술자, 김희찬)
A37: (중복도 산정 기준일) | C37: =$C$4 -> 2016-09-28
A38: No. | B38: 용역명 | C38: 총사업금액 (백만원) | D38: 착수일 | E38: 준공일 | F38: 잔여 일수 | G38: 총계약 일수 | H38: 중복일수 (개월)
A39: 1 | B39: "해당사항 없음" | C39: 940 | D39: 2012-07-20 | E39: 2013-12-10 | F39: 150 | G39: 450 | H39: =ROUNDUP((SUM((C39*(F39/G39)/10))),2) -> 31.34
B40: 계 | H40: =SUM(H39:H39) -> 31.34
A42: ( 참여분야 : 상하수도분야 책임기술자, 김승관)
A43: (중복도 산정 기준일) | C43: =$C$4 -> 2016-09-28
A44: No. | B44: 용역명 | C44: 총사업금액 (백만원) | D44: 착수일 | E44: 준공일 | F44: 잔여 일수 | G44: 총계약 일수 | H44: 중복일수 (개월)
A45: 1 | B45: 화성시 공동형종합 장사시설 기본계획 및 도시관리계획(도시계획시설) 변경결정 용역 | C45: 1831 | D45: 2014-05-02 | E45: 2017-03-16 | F45: =E45-$C$4+1 -> 170 | G45: =E45-D45+1 -> 1050 | H45: =ROUNDDOWN(F45/30,1) -> 5.6
A46: 2 | B46: 성남산업단지 재생계획 및 지구지정 용역 | C46: 309 | D46: 2016-04-26 | E46: 2017-04-25 | F46: =E46-$C$4+1 -> 210 | G46: =E46-D46+1 -> 365 | H46: =ROUNDDOWN(F46/30,1) -> 7
A47: 3 | B47: 평택 만호지구 도시개발사업 기본계획 및 실시설계용역 ※용역중지-15.06.11 | C47: 1362 | D47: 2014-06-10 | E47: 2016-05-29 | F47: =E47-K47+1 -> 354 | G47: =E47-D47+1 -> 720 | H47: ※공고일기준 3개월이상 용역중지 | K47: 2015-06-11
B48: 계 | H48: =SUM(H45:H47) -> 12.6
